bitfinex/quotes_ETHUSD_20250908
["timestamp","ask_amount","ask_price","bid_price","bid_amount"]
[1757314097016,10.0594662,4300.4,4300.3,0.002]
[1757314097215,9.6166662,4300.4,4300.3,0.002]
[1757314097577,11.94203128,4300.4,4300.3,0.002]
[1757314097790,12.38466774,4300.4,4300.3,0.002]
[1757314102207,11.94186774,4300.4,4300.3,0.002]
[1757314102398,19.00186774,4300.4,4300.3,0.002]
[1757314108840,19.79386774,4300.4,4300.3,0.002]
[1757314109039,6.11747323,4300.2,4300.0,0.001]
[1757314109239,7.59420266,4300.1,4300.0,0.001]
[1757314109535,16.97972997,4300.1,4300.0,0.001]
[1757314109902,17.72952997,4300.1,4300.0,0.001]
[1757314110103,18.11340944,4300.1,4300.0,0.001]
[1757314110303,19.63151741,4300.1,4300.0,0.001]
[1757314110556,17.3059901,4300.1,4300.0,0.7379]
[1757314110715,15.03808213,4300.1,4300.0,1.2308]
[1757314110905,12.03808213,4300.1,4300.0,1.2308]
[1757314115342,12.03808213,4300.1,4300.0,0.7379]
[1757314115840,12.03708213,4300.1,4300.0,0.7379]
[1757314117022,8.16308213,4300.1,4300.0,1.2308]
[1757314117257,12.03708213,4300.1,4300.0,1.2308]
[1757314117438,12.03708213,4300.1,4300.0,0.7379]
[1757314117765,13.53899034,4300.1,4300.0,0.001]
[1757314117911,16.33701765,4300.1,4300.0,0.001]
[1757314118310,14.01149034,4300.1,4300.0,0.001]
[1757314119838,13.24079034,4300.1,4300.0,0.7379]
[1757314120752,13.24079034,4300.1,4300.0,0.2935]
[1757314121248,13.24079034,4300.1,4300.0,0.001]
[1757314125360,16.74331765,4300.1,4300.0,0.001]
[1757314125543,16.31611765,4300.1,4300.0,0.001]
[1757314125957,16.31611765,4300.1,4300.0,0.003]
[1757314126457,16.31711765,4300.1,4300.0,0.003]
[1757314127046,13.99159034,4300.1,4300.0,0.003]
[1757314130774,16.31711765,4300.1,4300.0,0.003]
[1757314132869,13.99159034,4300.1,4300.0,0.003]
[1757314133229,9.36779034,4300.1,4300.0,0.2955]
[1757314133427,13.24179034,4300.1,4300.0,0.7607]
[1757314134570,13.24216743,4300.1,4300.0,0.7607]
[1757314135076,15.02916718,4300.1,4300.0,0.7607]
[1757314135243,15.02916718,4300.1,4300.0,0.2955]
[1757314136323,15.02916718,4300.1,4300.0,0.7607]
[1757314139035,15.02916718,4300.1,4300.0,0.2955]
[1757314140271,15.16003607,4300.1,4300.0,0.2955]
[1757314140747,11.28603607,4300.1,4300.0,0.2955]
[1757314140948,13.94168737,4300.1,4300.0,1.244]
[1757314144679,13.94168737,4300.1,4300.0,0.7607]
[1757314145562,14.74288737,4300.1,4300.0,0.003]
[1757314145774,16.21717611,4300.1,4300.0,0.003]
[1757314146605,16.62027611,4300.1,4300.0,0.003]
[1757314146876,18.94580342,4300.1,4300.0,0.003]
[1757314147677,18.54270342,4300.1,4300.0,0.003]
[1757314147890,30.10634899,4300.1,4300.0,0.003]
[1757314148094,6.11758139,4300.0,4299.9,0.002]
[1757314148298,9.32344625,4300.0,4299.9,0.002]
[1757314148472,9.62494625,4300.0,4299.9,0.002]
[1757314148792,10.52774625,4300.0,4299.9,0.002]
[1757314149389,7.67466811,4300.0,4299.9,0.002]
[1757314149590,7.17496811,4300.0,4299.9,0.002]
[1757314149789,11.04896811,4300.0,4299.9,0.002]
[1757314149989,11.30486811,4300.0,4299.9,0.002]
[1757314150178,11.80456811,4300.0,4299.9,0.002]
[1757314150984,6.38296811,4300.0,4299.9,0.7699]
[1757314151185,9.86171587,4300.0,4299.9,0.7699]
[1757314154309,5.98771587,4300.0,4299.9,0.3047]
[1757314154516,7.5938079,4300.0,4299.9,0.7699]
[1757314155827,7.5938079,4300.0,4299.9,0.3047]
[1757314156418,7.5938079,4300.0,4299.9,0.002]
[1757314157230,8.52218774,4300.0,4299.9,0.002]
[1757314157436,3.89258774,4300.0,4299.9,0.002]
[1757314157727,12.52620782,4300.0,4299.9,0.002]
[1757314157895,20.03460782,4300.0,4299.9,0.002]
[1757314158428,17.26062643,4300.0,4299.9,0.002]
[1757314159331,19.58620782,4300.0,4299.9,0.002]
[1757314160930,19.58720782,4300.0,4299.9,0.002]
[1757314162233,19.36903614,4300.0,4299.9,0.002]
[1757314162400,19.58690008,4300.0,4299.9,0.002]
[1757314165139,17.26131869,4300.0,4299.9,0.002]
[1757314165432,18.05331869,4300.0,4299.9,0.002]
[1757314165840,12.63171869,4300.0,4299.9,0.317]
[1757314166036,16.50571869,4300.0,4299.9,0.7465]
[1757314166339,16.33293885,4300.0,4299.9,0.7465]
[1757314167104,18.65852024,4300.0,4299.9,0.002]
[1757314167304,15.08502024,4300.0,4299.9,0.002]
[1757314167504,19.45812024,4300.0,4299.9,0.002]
[1757314167941,19.86232024,4300.0,4299.9,0.002]
[1757314168304,19.86261042,4300.0,4299.9,0.002]
[1757314169437,19.86261544,4300.0,4299.9,0.002]
[1757314169923,20.0329895,4300.0,4299.9,0.002]
[1757314170332,25.47798562,4300.0,4299.9,0.002]
[1757314172143,25.69588167,4300.0,4299.9,0.002]
[1757314173920,25.69591029,4300.0,4299.9,0.002]
[1757314175150,18.6967289,4300.0,4299.9,0.317]
[1757314175449,16.72153278,4300.0,4299.9,0.7465]
[1757314175838,16.72186233,4300.0,4299.9,0.7465]
[1757314177067,19.04744372,4300.0,4299.9,0.7465]
[1757314177356,19.04744372,4300.0,4299.9,0.317]
[1757314179127,16.72186233,4300.0,4299.9,0.317]
[1757314179327,16.72186233,4300.0,4299.9,0.7465]
[1757314181625,12.67748827,4300.0,4299.9,0.7465]
[1757314181827,14.87304958,4300.0,4299.9,1.2299]
[1757314183124,14.87304958,4300.0,4299.9,0.7465]
[1757314186640,10.99904958,4300.0,4299.9,0.7465]
[1757314187073,14.87304958,4300.0,4299.9,0.7465]
[1757314190164,20.23353894,4300.0,4299.9,0.002]
[1757314190348,20.66993894,4300.0,4299.9,0.002]
[1757314192349,20.84127183,4300.0,4299.9,0.002]
[1757314194978,20.53580654,4300.0,4299.9,0.002]
[1757314195184,20.40487183,4300.0,4299.9,0.002]
[1757314196701,20.5358072,4300.0,4299.9,0.002]
[1757314197389,20.40487183,4300.0,4299.9,0.002]
[1757314209202,20.53581213,4300.0,4299.9,0.002]
[1757314210698,20.53581356,4300.0,4299.9,0.002]
[1757314212497,20.53651707,4300.0,4299.9,0.002]
[1757314213201,20.5365237,4300.0,4299.9,0.002]
[1757314213512,2.32568956,4299.8,4299.5,0.002]
[1757314213707,8.84919612,4299.6,4299.5,0.002]
[1757314214021,10.47449927,4299.6,4299.5,0.002]
[1757314214234,10.47449927,4299.6,4299.1,0.4629]
[1757314214235,2.32590594,4299.4,4299.1,0.4629]
[1757314214418,6.9194107,4299.4,4299.1,0.4629]
[1757314214636,8.79479881,4299.4,4299.1,0.4629]
[1757314214933,20.52246594,4299.4,4299.1,0.022]
[1757314215134,5.32606824,4299.1,4299.0,0.002]
[1757314215331,11.92484497,4299.1,4299.0,0.002]
[1757314215538,14.24348097,4299.1,4299.0,0.002]
[1757314215744,14.9350258,4299.1,4299.0,0.002]
[1757314216104,14.1925258,4299.1,4299.0,0.002]
[1757314216340,13.97448097,4299.1,4299.0,0.002]
[1757314217809,14.28458097,4299.1,4299.0,0.002]
[1757314218506,11.95851273,4299.1,4299.0,0.002]
[1757314218704,11.64841273,4299.1,4299.0,0.002]
[1757314218936,13.97448097,4299.1,4299.0,0.002]
[1757314219725,13.97395466,4299.1,4299.0,0.002]
[1757314220854,18.70788642,4299.1,4299.0,0.3014]
[1757314221151,16.44097845,4299.1,4299.0,1.2195]
[1757314221311,16.22326097,4299.1,4299.0,1.2195]
[1757314222216,16.22326097,4299.1,4299.0,0.7423]
[1757314224256,21.57963718,4299.1,4299.0,0.002]
[1757314224555,18.97392397,4299.1,4299.0,0.002]
[1757314224859,21.79899221,4299.1,4299.0,0.002]
[1757314226358,21.30169221,4299.1,4299.0,0.002]
[1757314226566,21.03489221,4299.1,4299.0,0.002]
[1757314226967,21.29999221,4299.1,4299.0,0.002]
[1757314227171,21.79729221,4299.1,4299.0,0.002]
[1757314227967,22.23649221,4299.1,4299.0,0.002]
[1757314228553,23.02849221,4299.1,4299.0,0.002]
[1757314228885,22.58929221,4299.1,4299.0,0.002]
[1757314231244,22.59029221,4299.1,4299.0,0.002]
[1757314232379,3.792,4299.0,4298.5,0.002]
[1757314232551,6.92009246,4298.9,4298.6,0.4612]
[1757314232879,0.719916,4298.8,4298.6,0.4612]
[1757314233179,4.37626097,4298.7,4298.5,0.002]
[1757314233382,0.116,4298.6,4298.5,0.002]
[1757314233743,0.116,4298.6,4298.5,0.7553]
[1757314234079,0.116,4298.6,4298.5,1.2142]
[1757314235863,0.116,4298.6,4298.5,0.7553]
[1757314237192,0.61751221,4298.6,4298.5,0.7553]
[1757314237955,0.116,4298.6,4298.5,0.7553]
[1757314238184,1.28145449,4298.6,4298.5,0.002]
[1757314238370,12.05656969,4298.6,4298.1,0.022]
[1757314238574,3.0,4298.3,4298.1,0.022]
[1757314238786,9.38116969,4298.2,4298.1,0.022]
[1757314239493,9.38116969,4298.2,4298.1,0.7753]
[1757314240282,9.16335449,4298.2,4298.1,0.7753]
[1757314241482,9.16335449,4298.2,4298.1,3.56080943]
[1757314241681,9.16335449,4298.2,4298.1,1.2342]
[1757314242308,6.16335449,4298.2,4298.1,3.56080943]
[1757314242610,5.662,4298.2,4298.1,3.56080943]
[1757314244004,5.662,4298.2,4298.1,4.25979323]
[1757314244613,5.662,4298.2,4298.1,1.0130838]
[1757314244798,2.28972658,4298.2,4298.1,0.7753]
[1757314245002,6.16372658,4298.2,4298.1,0.7753]
[1757314245191,6.16372658,4298.2,4298.1,1.2342]
[1757314245397,6.16372658,4298.2,4298.1,0.7753]
[1757314246516,6.16372658,4298.2,4298.1,3.10190943]
[1757314247015,6.16372658,4298.2,4298.1,0.7753]
[1757314247719,5.662,4298.2,4298.1,0.7753]
[1757314253158,6.42910091,4298.2,4298.1,0.022]
[1757314253365,7.49270091,4298.2,4298.1,0.022]
[1757314256978,6.73030091,4298.2,4298.1,0.022]
[1757314258441,2.85630091,4298.2,4298.1,0.022]
[1757314258774,6.16400091,4298.2,4298.1,0.022]
[1757314259338,6.38198467,4298.2,4298.1,0.022]
[1757314260271,2.50798467,4298.2,4298.1,0.022]
[1757314260475,6.38198467,4298.2,4298.1,0.3255]
[1757314260671,6.16400091,4298.2,4298.1,0.022]
[1757314260853,6.42370091,4298.2,4298.1,0.022]
[1757314261373,6.42397599,4298.2,4298.1,0.022]
[1757314261551,6.90627599,4298.2,4298.1,0.022]
[1757314262468,7.82636987,4298.2,4298.1,0.022]
[1757314264506,7.12433255,4298.2,4298.1,0.022]
[1757314264713,6.38233255,4298.2,4298.1,0.022]
[1757314264863,6.38233255,4298.2,4298.1,0.7753]
[1757314267198,2.50833255,4298.2,4298.1,0.3255]
[1757314267504,6.38233255,4298.2,4298.1,0.7753]
[1757314269101,6.38233255,4298.2,4298.1,0.3255]
[1757314269502,6.38233255,4298.2,4298.1,0.022]
[1757314270510,6.64203255,4298.2,4298.1,0.022]
[1757314270671,8.02128142,4298.2,4298.1,0.022]
[1757314272702,7.53898142,4298.2,4298.1,0.022]
[1757314273103,7.27928142,4298.2,4298.1,0.022]
[1757314273978,7.54088142,4298.2,4298.1,0.022]
[1757314275216,7.27928142,4298.2,4298.1,0.022]
[1757314275505,6.38233255,4298.2,4298.1,0.022]
[1757314275687,6.38233255,4298.2,4298.1,0.3255]
[1757314276812,6.38256442,4298.2,4298.1,0.3255]
[1757314277318,6.38256442,4298.2,4298.1,0.022]
[1757314282430,2.50856442,4298.2,4298.1,0.022]
[1757314282605,6.38256442,4298.2,4298.1,0.022]
[1757314285405,7.3017969,4298.2,4298.1,0.022]
[1757314288336,6.38256442,4298.2,4298.1,0.022]
[1757314297339,6.38256442,4298.2,4298.1,0.022]
[1757314297535,2.50856442,4298.2,4298.1,0.022]
[1757314297725,6.38256442,4298.2,4298.1,0.022]
[1757314298831,6.38260118,4298.2,4298.1,0.022]
[1757314299345,2.50860118,4298.2,4298.1,0.3116]
[1757314299548,6.38260118,4298.2,4298.1,0.022]
[1757314299730,8.011592,4298.2,4298.1,0.022]
[1757314301066,7.267092,4298.2,4298.1,0.022]
[1757314302270,8.013792,4298.2,4298.1,0.022]
[1757314302568,8.01380436,4298.2,4298.1,0.022]
[1757314303363,11.01380436,4298.2,4298.1,0.022]
[1757314303932,10.26710436,4298.2,4298.1,0.022]
[1757314306234,10.26705374,4298.2,4298.1,0.022]
[1757314313855,9.76477775,4298.2,4298.1,0.022]
[1757314314048,10.2675932,4298.2,4298.1,0.022]
[1757314316884,9.38310238,4298.2,4298.1,0.022]
[1757314318870,9.38210238,4298.2,4298.1,0.3168]
[1757314319079,9.38210238,4298.2,4298.1,0.7833]
[1757314319279,9.38210238,4298.2,4298.1,0.3168]
[1757314320195,9.38210238,4298.2,4298.1,0.022]
[1757314320395,12.00836162,4298.2,4298.1,0.022]
[1757314324383,11.23556162,4298.2,4298.1,0.022]
[1757314325396,11.52686162,4298.2,4298.1,0.022]
[1757314325608,12.00836162,4298.2,4298.1,0.022]
[1757314326776,11.23556162,4298.2,4298.1,0.7833]
[1757314327110,9.38206481,4298.2,4298.1,0.7833]
[1757314328099,9.38206481,4298.2,4298.1,0.3168]
[1757314328329,9.38206481,4298.2,4298.1,0.7833]
[1757314335707,5.50906481,4298.2,4298.1,0.7833]
[1757314335920,9.38106481,4298.2,4298.1,1.2791]
[1757314336699,5.50906481,4298.2,4298.1,1.2791]
[1757314336899,9.38106481,4298.2,4298.1,1.2791]
[1757314337623,9.38106481,4298.2,4298.1,0.7833]
[1757314337996,9.38106481,4298.2,4298.1,3.10990943]
[1757314337997,2.50906481,4298.2,4298.1,3.10990943]
[1757314338197,6.49706481,4298.2,4298.1,3.60570943]
[1757314338428,6.27881545,4298.2,4298.1,3.60570943]
[1757314339424,6.27881545,4298.2,4298.1,0.3168]
[1757314339757,13.50450762,4298.2,4298.1,0.022]
[1757314339926,7.23412567,4298.2,4298.1,0.022]
[1757314343053,7.01591545,4298.2,4298.1,0.022]
[1757314344153,6.27881545,4298.2,4298.1,0.022]
[1757314350071,6.27881545,4298.2,4298.1,0.72098705]
[1757314350470,6.27881545,4298.2,4298.1,1.02438705]
[1757314350674,6.27881545,4298.2,4298.1,1.45438705]
[1757314354499,6.27881545,4298.2,4298.1,1.02438705]
[1757314355211,6.27881545,4298.2,4298.1,0.72098705]
[1757314367341,6.49712286,4298.2,4298.1,0.72098705]
[1757314367940,13.26592045,4298.2,4298.1,0.72098705]
[1757314368098,11.38286515,4298.2,4298.1,0.72098705]
[1757314368293,11.38286515,4298.2,4298.1,0.022]
[1757314368504,10.93936515,4298.2,4298.1,0.022]
[1757314375954,9.49512286,4298.2,4298.1,1.225]
[1757314376153,9.49512286,4298.2,4298.1,0.022]
[1757314376761,10.23912286,4298.2,4298.1,0.022]
[1757314377125,9.49512286,4298.2,4298.1,0.022]
[1757314378333,9.75782286,4298.2,4298.1,0.022]
[1757314379066,9.49512286,4298.2,4298.1,0.022]
[1757314380566,6.49512286,4298.2,4298.1,1.225]
[1757314380761,6.27681545,4298.2,4298.1,0.7722]
[1757314384830,6.27669359,4298.2,4298.1,0.7722]
[1757314386665,4.48869359,4298.2,4298.1,0.7722]
[1757314388771,5.23269359,4298.2,4298.1,0.022]
[1757314389063,6.04910003,4298.2,4298.1,0.022]
[1757314390232,5.23269359,4298.2,4298.1,0.022]
[1757314394588,5.45090259,4298.2,4298.1,0.022]
[1757314395548,5.89430259,4298.2,4298.1,0.022]
[1757314396045,5.45090259,4298.2,4298.1,0.022]
[1757314402071,4.96780259,4298.2,4298.1,0.022]
[1757314402653,4.96784695,4298.2,4298.1,0.022]
[1757314403694,5.46404695,4298.2,4298.1,0.022]
[1757314403866,7.24224364,4298.2,4298.1,0.022]
[1757314406690,5.46304695,4298.2,4298.1,0.022]
[1757314406990,4.96684695,4298.2,4298.1,0.022]
[1757314408589,5.46304695,4298.2,4298.1,0.022]
[1757314409493,4.96684695,4298.2,4298.1,0.022]
[1757314409792,4.70594695,4298.2,4298.1,0.022]
[1757314410896,13.33540732,4298.2,4298.1,0.022]
[1757314411096,3.11871769,4297.9,4297.8,0.025]
[1757314411254,0.908,4297.8,4297.6,0.002]
[1757314411458,8.64644695,4297.7,4297.6,0.002]
[1757314411758,13.24118089,4297.7,4297.6,0.002]
[1757314412060,13.73738089,4297.7,4297.6,0.002]
[1757314412260,14.35457079,4297.7,4297.6,0.002]
[1757314413697,13.91477079,4297.7,4297.6,0.002]
[1757314414807,11.58794482,4297.7,4297.6,0.002]
[1757314417293,11.36969146,4297.7,4297.6,0.002]
[1757314417501,11.58754532,4297.7,4297.6,0.002]
[1757314418375,9.85745542,4297.7,4297.6,0.2872]
[1757314418598,7.37169359,4297.7,4297.6,0.002]
[1757314420474,8.11329359,4297.7,4297.6,0.002]
[1757314420707,13.96845645,4297.7,4297.6,0.002]
[1757314422219,14.76045645,4297.7,4297.6,0.002]
[1757314423708,14.26425645,4297.7,4297.6,0.002]
[1757314424101,14.01885645,4297.7,4297.6,0.002]
[1757314426011,15.81372817,4297.7,4297.6,0.002]
[1757314426176,16.06132817,4297.7,4297.6,0.002]
[1757314426536,18.38815414,4297.7,4297.6,0.002]
[1757314426833,19.55875548,4297.7,4297.6,0.002]
[1757314427687,19.10215548,4297.7,4297.6,0.002]
[1757314429413,16.77532951,4297.7,4297.6,0.002]
[1757314429612,10.17636665,4297.7,4297.6,0.2872]
[1757314429854,10.17636665,4297.7,4297.6,0.7482]
[1757314430356,10.17636665,4297.7,4297.6,0.2872]
[1757314431518,10.17636665,4297.7,4297.6,0.002]
[1757314434227,8.16369359,4297.7,4297.6,1.2042]
[1757314435657,9.95169359,4297.7,4297.6,1.2042]
[1757314436220,9.95169359,4297.7,4297.6,0.2954]
[1757314436932,9.95169359,4297.7,4297.6,0.7363]
[1757314438357,9.95169359,4297.7,4297.6,0.002]
[1757314438527,12.21047327,4297.7,4297.6,0.002]
[1757314438735,12.91093522,4297.7,4297.6,0.002]
[1757314440027,10.95565554,4297.7,4297.6,0.002]
[1757314440559,10.47325554,4297.7,4297.6,0.002]
[1757314440726,10.95565554,4297.7,4297.6,0.002]
[1757314442056,10.47325554,4297.7,4297.6,0.002]
[1757314443126,17.02906692,4297.7,4297.6,0.002]
[1757314445078,16.8108184,4297.7,4297.6,0.002]
[1757314448982,18.94140005,4297.7,4297.6,0.002]
[1757314450573,20.76553243,4297.7,4297.6,0.002]
[1757314450773,18.94158104,4297.7,4297.6,0.002]
[1757314451692,21.48667048,4297.7,4297.6,0.002]
[1757314452255,21.26840701,4297.7,4297.6,0.002]
[1757314452591,21.88786889,4297.7,4297.6,0.002]
[1757314453485,22.01882621,4297.7,4297.6,0.002]
[1757314454188,21.61762621,4297.7,4297.6,0.002]
[1757314458175,28.67755969,4297.7,4297.6,0.002]
[1757314458375,29.07875969,4297.7,4297.6,0.002]
[1757314459178,28.67755969,4297.7,4297.6,0.002]
[1757314461628,29.07875969,4297.7,4297.6,0.002]
[1757314463810,28.67755969,4297.7,4297.6,0.002]
[1757314464012,29.51571458,4297.7,4297.6,0.002]
[1757314468529,29.91691458,4297.7,4297.6,0.002]
[1757314469226,29.51571458,4297.7,4297.6,0.002]
[1757314469406,29.91691458,4297.7,4297.6,0.002]
[1757314470093,29.51571458,4297.7,4297.6,0.002]
[1757314472407,29.91691458,4297.7,4297.6,0.002]
[1757314473031,29.51571458,4297.7,4297.6,0.002]
[1757314474901,29.51569719,4297.7,4297.6,0.002]
[1757314480328,23.66053433,4297.7,4297.6,0.002]
[1757314480958,22.87463433,4297.7,4297.6,0.3023]
[1757314483749,22.87463433,4297.7,4297.6,0.7743]
[1757314484316,22.03647944,4297.7,4297.6,0.7743]
[1757314484725,19.00569821,4297.7,4297.6,0.7743]
[1757314484956,20.74211656,4297.7,4297.6,0.7743]
[1757314490381,20.74211656,4297.7,4297.6,0.3023]
[1757314490963,21.01421656,4297.7,4297.6,0.002]
[1757314491167,21.49301656,4297.7,4297.6,0.002]
[1757314491345,20.65479779,4297.7,4297.6,0.002]
[1757314491541,22.92270576,4297.7,4297.6,0.002]
[1757314491864,22.70452739,4297.7,4297.6,0.002]
[1757314492167,22.92287138,4297.7,4297.6,0.002]
[1757314494968,22.17197138,4297.7,4297.6,0.002]
[1757314497154,22.17197138,4297.7,4297.6,0.2976]
[1757314501569,22.17222524,4297.7,4297.6,0.2976]
[1757314503273,21.95388125,4297.7,4297.6,0.2976]
[1757314503478,22.17222278,4297.7,4297.6,0.2976]
[1757314503881,23.0106247,4297.7,4297.6,0.2976]
[1757314504649,22.17222278,4297.7,4297.6,0.2976]
[1757314506885,22.17222278,4297.7,4297.6,0.7693]
[1757314507582,23.01064549,4297.7,4297.6,0.7693]
[1757314508288,23.01073629,4297.7,4297.6,0.7693]
[1757314510385,22.17246812,4297.7,4297.6,0.7693]
[1757314510995,0.8384077,4297.8,4297.6,1.2451]
[1757314511166,0.001,4298.3,4297.6,0.99650726]
[1757314511372,3.607,4298.1,4297.6,0.99650726]
[1757314511608,3.607,4298.1,4297.6,0.2976]
[1757314511770,3.607,4298.1,4298.0,2.32666356]
[1757314512460,3.607,4298.1,4298.0,3.02563759]
[1757314513703,3.607,4298.1,4298.0,3.24313796]
[1757314516787,3.607,4298.1,4298.0,0.9164744]
[1757314516987,3.607,4298.1,4298.0,3.24313796]
[1757314517777,3.607,4298.1,4298.0,0.9164744]
[1757314519420,3.607,4298.1,4298.0,3.24313796]
[1757314523509,3.607,4298.1,4298.0,0.9164744]
[1757314523510,4.3253,4298.1,4298.0,0.9164744]
[1757314523884,4.3253,4298.1,4298.0,3.24313796]
[1757314524096,3.882,4298.1,4298.0,3.24313796]
[1757314524293,5.8923,4298.1,4298.0,0.9164744]
[1757314524493,5.8923,4298.1,4298.0,0.21750037]
[1757314527318,0.001,4298.2,4298.0,0.21750037]
[1757314527615,0.001,4298.2,4298.1,0.21750037]
[1757314527823,3.883,4298.2,4298.1,0.21750037]
[1757314527991,5.8933,4298.2,4298.1,0.21750037]
[1757314528620,0.792,4298.1,4297.6,2.32883455]
[1757314528819,0.792,4298.1,4297.7,0.2170315]
[1757314528997,0.9272,4298.0,4297.8,0.2170315]
[1757314529318,3.882,4297.9,4297.8,0.002]
[1757314529516,4.3253,4297.9,4297.8,0.21904719]
[1757314529698,5.8923,4297.9,4297.8,0.21904719]
[1757314532199,5.8923,4297.9,4297.8,0.21913646]
[1757314536724,7.21954538,4297.9,4297.8,0.21913646]
[1757314540409,13.07395197,4297.9,4297.8,0.21913646]
[1757314540601,11.74670659,4297.9,4297.8,0.21913646]
[1757314542735,14.07342428,4297.9,4297.8,0.21913646]
[1757314542942,11.74670659,4297.9,4297.8,0.21913646]
[1757314546813,14.07342428,4297.9,4297.8,0.21913646]
[1757314547024,14.07342428,4297.9,4297.8,0.21971016]
[1757314547340,14.01461456,4297.9,4297.8,0.21971016]
[1757314548747,14.01561456,4297.9,4297.8,0.21971016]
[1757314553424,11.74770659,4297.9,4297.8,0.21971016]
[1757314554073,11.74770659,4297.9,4297.8,0.21971016]
[1757314557880,5.8933,4297.9,4297.8,0.21971016]
[1757314558044,11.74770659,4297.9,4297.8,0.21971016]
[1757314558894,13.53570659,4297.9,4297.8,0.21971016]
[1757314561186,12.31740659,4297.9,4297.8,0.21971016]
[1757314561342,12.77360659,4297.9,4297.8,0.21971016]
[1757314562564,13.26370659,4297.9,4297.8,0.21971016]
[1757314564683,13.55010659,4297.9,4297.8,0.21971016]
[1757314569595,15.87682428,4297.9,4297.8,0.21971016]
[1757314569893,15.81801456,4297.9,4297.8,0.21971016]
[1757314571393,13.55010659,4297.9,4297.8,0.21971016]
[1757314575066,13.55010659,4297.9,4297.8,0.22016402]
[1757314578823,13.55010659,4297.9,4297.8,0.22020669]
[1757314585642,15.87682428,4297.9,4297.8,0.22020669]
[1757314586045,13.55010659,4297.9,4297.8,0.22009213]
[1757314587157,15.87682428,4297.9,4297.8,0.22009213]
[1757314587930,18.14473225,4297.9,4297.8,0.22009213]
[1757314588462,15.81801456,4297.9,4297.8,0.22009213]
[1757314589727,18.14473225,4297.9,4297.8,0.22009213]
[1757314593356,15.87682428,4297.9,4297.8,0.22009213]
[1757314602397,10.02241769,4297.9,4297.8,0.22009213]
[1757314611806,10.02241769,4297.9,4297.8,0.22003386]
[1757314618979,10.02241769,4297.9,4297.8,0.22004911]
[1757314619806,5.657,4297.9,4297.8,0.22004911]
[1757314620140,7.6658,4297.9,4297.8,0.22004911]
[1757314620283,7.3799,4297.9,4297.8,0.22004911]
[1757314620482,6.449,4297.9,4297.8,0.22004911]
[1757314620811,6.9154,4297.9,4297.8,0.22004911]
[1757314620998,11.64493122,4297.9,4297.8,0.22004911]
[1757314622033,9.99251769,4297.9,4297.8,0.22004911]
[1757314622334,7.6658,4297.9,4297.8,0.22004911]
[1757314623515,9.99251769,4297.9,4297.8,0.22004911]
[1757314623965,7.6658,4297.9,4297.8,0.22004911]
[1757314624445,7.3799,4297.9,4297.8,0.22004911]
[1757314624660,6.449,4297.9,4297.8,0.22004911]
[1757314625132,6.449,4297.9,4297.8,0.22012383]
[1757314629632,6.9135,4297.9,4297.8,0.22012383]
[1757314630562,6.9135,4297.9,4297.8,0.002]
[1757314632284,9.99251769,4297.9,4297.8,0.002]
[1757314632485,11.95263044,4297.9,4297.8,0.002]
[1757314634674,9.62591275,4297.9,4297.8,0.002]
[1757314638000,22.83232995,4297.9,4297.8,0.002]
[1757314642296,29.89232995,4297.9,4297.8,0.002]
[1757314643395,0.792,4297.6,4297.4,0.002]
[1757314643563,4.66,4297.5,4297.4,0.002]
[1757314643763,7.65018954,4297.5,4297.4,0.002]
[1757314643964,8.60618954,4297.5,4297.4,0.002]
[1757314644165,8.69941714,4297.5,4297.4,0.002]
[1757314644371,9.79614965,4297.5,4297.4,0.002]
[1757314647967,16.85614965,4297.5,4297.4,0.002]
[1757314648173,14.52921539,4297.5,4297.4,0.002]
[1757314649502,14.21701539,4297.5,4297.4,0.002]
[1757314649806,13.72861539,4297.5,4297.4,0.002]
[1757314651911,16.54394965,4297.5,4297.4,0.002]
[1757314652210,14.52921539,4297.5,4297.4,0.002]
[1757314653879,16.85614965,4297.5,4297.4,0.002]
[1757314654325,14.52921539,4297.5,4297.4,0.002]
[1757314655912,19.85614965,4297.5,4297.4,0.002]
[1757314661817,17.52921539,4297.5,4297.4,0.002]
[1757314662324,25.71216003,4297.5,4297.4,0.002]
[1757314662521,31.56817041,4297.5,4297.4,0.002]
[1757314662721,3.792,4297.4,4297.2,0.002]
[1757314663020,7.659,4297.3,4297.2,0.002]
[1757314663225,3.792,4297.2,4296.9,0.002]
[1757314663388,9.64801038,4297.0,4296.9,0.002]
[1757314663588,12.2874154,4297.0,4296.9,0.002]
[1757314663810,15.03765694,4297.0,4296.9,0.002]
[1757314664293,15.13089431,4297.0,4296.9,0.002]
[1757314664486,12.80368929,4297.0,4296.9,0.002]
[1757314665823,19.86368929,4297.0,4296.9,0.002]
[1757314666828,22.19089431,4297.0,4296.9,0.002]
[1757314667225,19.86368929,4297.0,4296.9,0.002]
[1757314667613,22.19089431,4297.0,4296.9,0.002]
[1757314671502,19.86368929,4297.0,4296.9,0.002]
[1757314671823,22.19089431,4297.0,4296.9,0.002]
[1757314673944,10.94523737,4297.0,4296.9,0.002]
[1757314674652,11.38173737,4297.0,4296.9,0.002]
[1757314675537,14.17164239,4297.0,4296.9,0.002]
[1757314675856,12.13233737,4297.0,4296.9,0.002]
[1757314676350,10.94523737,4297.0,4296.9,0.002]
[1757314677044,11.38173737,4297.0,4296.9,0.002]
[1757314677248,11.84443737,4297.0,4296.9,0.002]
[1757314678639,12.13233737,4297.0,4296.9,0.002]
[1757314679220,14.45954239,4297.0,4296.9,0.002]
[1757314679818,12.13233737,4297.0,4296.9,0.002]
[1757314680716,14.45954239,4297.0,4296.9,0.002]
[1757314681343,16.72745036,4297.0,4296.9,0.002]
[1757314681942,14.40024534,4297.0,4296.9,0.002]
[1757314682355,16.72745036,4297.0,4296.9,0.002]